[Event "Early-Titled-Tuesday-Blitz-October-17-2023"]
[Site "Chess.com"]
[Date "2023.10.17"]
[Round "8"]
[White "salomez"]
[Black "Fh2411"]
[Result "1-0"]
[WhiteElo "2360"]
[BlackElo "2525"]
[TimeControl "180+1"]
[EndTime "9:32:11 PDT"]
[Termination "salomez won by resignation"]

1. e4 {[%clk 0:03:00.9]} 1... c6 {[%clk 0:02:56.8]} 2. d4 {[%clk 0:02:59.2]}
2... d5 {[%clk 0:02:55.3]} 3. exd5 {[%clk 0:03:00.1]} 3... cxd5 {[%clk
0:02:55.2]} 4. Bd3 {[%clk 0:03:01]} 4... Nc6 {[%clk 0:02:55.5]} 5. c3 {[%clk
0:03:00.6]} 5... Nf6 {[%clk 0:02:54.6]} 6. h3 {[%clk 0:03:00.3]} 6... g6 {[%clk
0:02:54.4]} 7. Nf3 {[%clk 0:02:57.7]} 7... Bf5 {[%clk 0:02:54.2]} 8. Be2 {[%clk
0:02:58]} 8... Bg7 {[%clk 0:02:49.5]} 9. O-O {[%clk 0:02:58.9]} 9... O-O {[%clk
0:02:50.1]} 10. Nbd2 {[%clk 0:02:56.7]} 10... a6 {[%clk 0:02:36.2]} 11. a4
{[%clk 0:02:54.6]} 11... Ne4 {[%clk 0:02:31.5]} 12. Re1 {[%clk 0:02:53.4]} 12...
Re8 {[%clk 0:02:29.7]} 13. Nf1 {[%clk 0:02:53.5]} 13... Rc8 {[%clk 0:02:23.2]}
14. Ne3 {[%clk 0:02:53.6]} 14... Qd7 {[%clk 0:02:19.5]} 15. Bf1 {[%clk
0:02:50.6]} 15... Be6 {[%clk 0:02:16.4]} 16. g4 {[%clk 0:02:21.4]} 16... h6
{[%clk 0:02:01.8]} 17. Bg2 {[%clk 0:02:21.3]} 17... Na5 {[%clk 0:02:01.5]} 18.
Ne5 {[%clk 0:02:19.8]} 18... Qd6 {[%clk 0:01:49.9]} 19. f4 {[%clk 0:02:05.9]}
19... Qb6 {[%clk 0:00:52.4]} 20. f5 {[%clk 0:01:49.1]} 20... Bxe5 {[%clk
0:00:44.1]} 21. fxe6 {[%clk 0:01:34.8]} 21... Bg3 {[%clk 0:00:23.3]} 22. exf7+
{[%clk 0:01:35.7]} 22... Kxf7 {[%clk 0:00:23.1]} 23. Nxd5 {[%clk 0:01:36.3]}
23... Qb3 {[%clk 0:00:17.2]} 24. Bxe4 {[%clk 0:01:11.2]} 24... Bxe1 {[%clk
0:00:14.6]} 25. Qxe1 {[%clk 0:01:12.1]} 25... Kg7 {[%clk 0:00:12.8]} 26. Qe3
{[%clk 0:01:11.9]} 26... Qd1+ {[%clk 0:00:10.1]} 27. Kg2 {[%clk 0:01:08.3]}
27... g5 {[%clk 0:00:08.1]} 28. Rb1 {[%clk 0:01:05.2]} 28... Rf8 {[%clk
0:00:08.2]} 29. Bd2 {[%clk 0:01:03.2]} 29... Qb3 {[%clk 0:00:05.9]} 30. Nxe7
{[%clk 0:00:56.1]} 30... Nc4 {[%clk 0:00:06]} 31. Qd3 {[%clk 0:00:42.1]} 31...
Rce8 {[%clk 0:00:06.1]} 32. Nf5+ {[%clk 0:00:40.9]} 32... Rxf5 {[%clk
0:00:05.9]} 33. Bxf5 {[%clk 0:00:35.2]} 33... Nxd2 {[%clk 0:00:02.7]} 34. Qxd2
{[%clk 0:00:35.5]} 34... Qd5+ {[%clk 0:00:03.4]} 35. Kh2 {[%clk 0:00:21.8]}
35... Qf3 {[%clk 0:00:03.2]} 36. Re1 {[%clk 0:00:21.9]} 36... Rxe1 {[%clk
0:00:01.8]} 37. Qxe1 {[%clk 0:00:21.9]} 37... Qf4+ {[%clk 0:00:02.5]} 38. Kg2
{[%clk 0:00:22.3]} 1-0

[Event "Early-Titled-Tuesday-Blitz-October-17-2023"]
[Site "Chess.com"]
[Date "2023.10.17"]
[Round "8"]
[White "ExcitingTrap"]
[Black "DrCeltic"]
[Result "0-1"]
[WhiteElo "2399"]
[BlackElo "2556"]
[TimeControl "180+1"]
[EndTime "9:32:18 PDT"]
[Termination "DrCeltic won by resignation"]

1. e4 {[%clk 0:03:00.9]} 1... c5 {[%clk 0:02:59.9]} 2. Nf3 {[%clk 0:02:59.2]}
2... e6 {[%clk 0:02:59.9]} 3. d4 {[%clk 0:02:59.7]} 3... cxd4 {[%clk 0:03:00.8]}
4. Nxd4 {[%clk 0:03:00.6]} 4... Nf6 {[%clk 0:03:01.4]} 5. Bd3 {[%clk 0:03:00.3]}
5... Nc6 {[%clk 0:03:01.5]} 6. Nxc6 {[%clk 0:02:59.2]} 6... bxc6 {[%clk
0:03:02.4]} 7. c4 {[%clk 0:02:59.5]} 7... d5 {[%clk 0:03:01.6]} 8. Nc3 {[%clk
0:02:57.8]} 8... Be7 {[%clk 0:02:59.3]} 9. O-O {[%clk 0:02:57.2]} 9... O-O
{[%clk 0:02:59.6]} 10. Qf3 {[%clk 0:02:56.3]} 10... a5 {[%clk 0:02:49.6]} 11.
cxd5 {[%clk 0:02:51.3]} 11... cxd5 {[%clk 0:02:49.9]} 12. exd5 {[%clk
0:02:48.3]} 12... Bb7 {[%clk 0:02:31.6]} 13. Qh3 {[%clk 0:02:31.1]} 13... Bxd5
{[%clk 0:02:30.9]} 14. Nxd5 {[%clk 0:02:30]} 14... Qxd5 {[%clk 0:02:31.4]} 15.
Be2 {[%clk 0:01:49.7]} 15... Rac8 {[%clk 0:02:23.5]} 16. Be3 {[%clk 0:01:47.5]}
16... Rc2 {[%clk 0:02:11.9]} 17. Bf3 {[%clk 0:01:46]} 17... Qe5 {[%clk 0:02:12]}
18. b3 {[%clk 0:01:33.7]} 18... Nd5 {[%clk 0:02:10.4]} 19. Rae1 {[%clk
0:01:26.4]} 19... Rxa2 {[%clk 0:01:58.5]} 20. Bc5 {[%clk 0:01:17.6]} 20... Qf6
{[%clk 0:01:55.7]} 21. Be4 {[%clk 0:01:04.5]} 21... g6 {[%clk 0:01:46.4]} 22.
Be3 {[%clk 0:00:46.2]} 22... Nxe3 {[%clk 0:01:41.5]} 23. Rxe3 {[%clk 0:00:47.1]}
23... Bc5 {[%clk 0:01:31.3]} 24. Rf3 {[%clk 0:00:44.9]} 24... Qe5 {[%clk
0:01:31.4]} 25. Bb1 {[%clk 0:00:41.6]} 25... Rb2 {[%clk 0:01:21.7]} 26. Qh6
{[%clk 0:00:28.5]} 26... Rd8 {[%clk 0:01:17.4]} 27. Bd3 {[%clk 0:00:06.6]} 27...
Rxf2 {[%clk 0:00:32.5]} 28. R1xf2 {[%clk 0:00:03.9]} 28... Rxd3 {[%clk
0:00:30.4]} 29. Qc1 {[%clk 0:00:02.2]} 29... Rxf3 {[%clk 0:00:23.2]} 30. gxf3
{[%clk 0:00:03.1]} 30... Qd4 {[%clk 0:00:22.1]} 31. Qf1 {[%clk 0:00:02.4]} 31...
Qxf2+ {[%clk 0:00:20.6]} 32. Qxf2 {[%clk 0:00:03.3]} 32... Bxf2+ {[%clk
0:00:21]} 33. Kxf2 {[%clk 0:00:04.2]} 33... Kf8 {[%clk 0:00:20.6]} 34. Ke3
{[%clk 0:00:05.1]} 34... Ke7 {[%clk 0:00:21.2]} 35. Kd4 {[%clk 0:00:06]} 35...
Kd6 {[%clk 0:00:21.8]} 36. Kc4 {[%clk 0:00:06.5]} 36... Kc6 {[%clk 0:00:22.5]}
37. f4 {[%clk 0:00:05]} 37... f6 {[%clk 0:00:22.8]} 38. Kd4 {[%clk 0:00:04.7]}
38... Kb5 {[%clk 0:00:21.6]} 0-1

[Event "Early-Titled-Tuesday-Blitz-October-17-2023"]
[Site "Chess.com"]
[Date "2023.10.17"]
[Round "8"]
[White "whiteglovethief"]
[Black "Smiechu"]
[Result "0-1"]
[WhiteElo "2647"]
[BlackElo "2509"]
[TimeControl "180+1"]
[EndTime "9:32:22 PDT"]
[Termination "Smiechu won on time"]

1. d4 {[%clk 0:03:00.9]} 1... Nf6 {[%clk 0:02:59.5]} 2. c4 {[%clk 0:03:01.4]}
2... c5 {[%clk 0:02:59.7]} 3. d5 {[%clk 0:03:01.1]} 3... e6 {[%clk 0:03:00.3]}
4. Nc3 {[%clk 0:03:00.8]} 4... exd5 {[%clk 0:03:00.7]} 5. cxd5 {[%clk
0:03:01.7]} 5... d6 {[%clk 0:03:01.3]} 6. e4 {[%clk 0:03:02.4]} 6... g6 {[%clk
0:03:01.8]} 7. f4 {[%clk 0:03:03]} 7... Bg7 {[%clk 0:03:02.3]} 8. e5 {[%clk
0:03:02.5]} 8... Nfd7 {[%clk 0:03:01.6]} 9. Nb5 {[%clk 0:03:02.7]} 9... O-O
{[%clk 0:02:44.4]} 10. Nxd6 {[%clk 0:03:01.5]} 10... Nxe5 {[%clk 0:02:37.4]} 11.
Nxc8 {[%clk 0:02:54.8]} 11... Re8 {[%clk 0:02:08.7]} 12. fxe5 {[%clk 0:02:50.8]}
12... Qh4+ {[%clk 0:02:01.6]} 13. Kd2 {[%clk 0:02:44.5]} 13... Rxc8 {[%clk
0:01:18.9]} 14. Nf3 {[%clk 0:02:42.2]} 14... Qg4 {[%clk 0:01:15.1]} 15. Kc2
{[%clk 0:02:24.7]} 15... Nd7 {[%clk 0:01:12.4]} 16. Bd2 {[%clk 0:02:15.5]} 16...
c4 {[%clk 0:01:12.1]} 17. Bc3 {[%clk 0:02:14.8]} 17... Qe4+ {[%clk 0:01:04.9]}
18. Bd3 {[%clk 0:02:10.5]} 18... cxd3+ {[%clk 0:01:04.5]} 19. Qxd3 {[%clk
0:02:11.4]} 19... Qg4 {[%clk 0:00:52.9]} 20. Kb1 {[%clk 0:01:53.5]} 20... Qxg2
{[%clk 0:00:43.2]} 21. Re1 {[%clk 0:01:51.2]} 21... Nc5 {[%clk 0:00:41.3]} 22.
Qe2 {[%clk 0:01:46.8]} 22... Qg4 {[%clk 0:00:34.6]} 23. Nd4 {[%clk 0:01:14]}
23... Qh3 {[%clk 0:00:19]} 24. a4 {[%clk 0:01:01.9]} 24... Nd3 {[%clk
0:00:16.1]} 25. e6 {[%clk 0:00:50]} 25... Nxe1 {[%clk 0:00:13.8]} 26. exf7+
{[%clk 0:00:49.7]} 26... Kh8 {[%clk 0:00:13.8]} 27. Qxe1 {[%clk 0:00:43.9]}
27... Qd3+ {[%clk 0:00:13.9]} 28. Ka2 {[%clk 0:00:43.2]} 28... Bxd4 {[%clk
0:00:14]} 29. Bxd4+ {[%clk 0:00:17.5]} 29... Qxd4 {[%clk 0:00:14.2]} 30. Rc1
{[%clk 0:00:17.7]} 30... Qxd5+ {[%clk 0:00:13.4]} 31. b3 {[%clk 0:00:16.7]}
31... Qxf7 {[%clk 0:00:11.3]} 32. Qe5+ {[%clk 0:00:16.6]} 32... Qg7 {[%clk
0:00:11.4]} 33. Rxc8+ {[%clk 0:00:14.3]} 33... Rxc8 {[%clk 0:00:11.5]} 34. Qe6
{[%clk 0:00:14.9]} 34... Rc2+ {[%clk 0:00:10.9]} 35. Ka3 {[%clk 0:00:15.6]}
35... Qa1+ {[%clk 0:00:07.4]} 36. Kb4 {[%clk 0:00:16.5]} 36... Qc3+ {[%clk
0:00:07.4]} 37. Ka3 {[%clk 0:00:16.5]} 37... Qc5+ {[%clk 0:00:07.7]} 38. b4
{[%clk 0:00:15]} 38... Qc3+ {[%clk 0:00:08]} 0-1

[Event "Early-Titled-Tuesday-Blitz-October-17-2023"]
[Site "Chess.com"]
[Date "2023.10.17"]
[Round "8"]
[White "stratacticos"]
[Black "CraiggoryC"]
[Result "0-1"]
[WhiteElo "1716"]
[BlackElo "2196"]
[TimeControl "180+1"]
[EndTime "9:32:22 PDT"]
[Termination "CraiggoryC won on time"]

1. b4 {[%clk 0:03:00]} 1... Nf6 {[%clk 0:02:33.3]} 2. Bb2 {[%clk 0:02:58.9]}
2... e6 {[%clk 0:02:32.5]} 3. b5 {[%clk 0:02:58.6]} 3... d5 {[%clk 0:02:31]} 4.
Nf3 {[%clk 0:02:53.5]} 4... Be7 {[%clk 0:02:31.5]} 5. e3 {[%clk 0:02:50.2]} 5...
O-O {[%clk 0:02:32.1]} 6. Be2 {[%clk 0:02:48.3]} 6... a6 {[%clk 0:02:32.7]} 7.
a4 {[%clk 0:02:46.7]} 7... Nbd7 {[%clk 0:02:25.2]} 8. O-O {[%clk 0:02:44.7]}
8... Nc5 {[%clk 0:02:19]} 9. d3 {[%clk 0:02:32.8]} 9... axb5 {[%clk 0:02:11.4]}
10. axb5 {[%clk 0:02:31.4]} 10... Rxa1 {[%clk 0:02:12.3]} 11. Bxa1 {[%clk
0:02:30.5]} 11... Bd7 {[%clk 0:02:08.1]} 12. c4 {[%clk 0:02:13]} 12... Qa8
{[%clk 0:01:57.9]} 13. Nc3 {[%clk 0:02:06.6]} 13... dxc4 {[%clk 0:01:47.4]} 14.
dxc4 {[%clk 0:02:05.1]} 14... Rd8 {[%clk 0:01:47.1]} 15. Qc2 {[%clk 0:02:01.4]}
15... b6 {[%clk 0:01:24.7]} 16. Bb2 {[%clk 0:01:47.5]} 16... Bc8 {[%clk
0:01:16.1]} 17. Ra1 {[%clk 0:01:36.7]} 17... Qb8 {[%clk 0:01:10.5]} 18. Ng5
{[%clk 0:01:25.4]} 18... h6 {[%clk 0:00:52]} 19. Nf3 {[%clk 0:01:15.2]} 19...
Bb7 {[%clk 0:00:50]} 20. Nd4 {[%clk 0:01:10.9]} 20... Qc8 {[%clk 0:00:41.4]} 21.
Bf3 {[%clk 0:01:04.4]} 21... Bxf3 {[%clk 0:00:35.1]} 22. Nxf3 {[%clk 0:01:03.6]}
22... Bd6 {[%clk 0:00:19.8]} 23. e4 {[%clk 0:00:58.2]} 23... e5 {[%clk
0:00:18.1]} 24. h3 {[%clk 0:00:55.9]} 24... Nh5 {[%clk 0:00:17.5]} 25. Nd5
{[%clk 0:00:48.6]} 25... Qe6 {[%clk 0:00:14.1]} 26. Ra7 {[%clk 0:00:40.9]} 26...
Nf4 {[%clk 0:00:11.2]} 27. Nxc7 {[%clk 0:00:38]} 27... Bxc7 {[%clk 0:00:10.2]}
28. Rxc7 {[%clk 0:00:37.5]} 28... Ncd3 {[%clk 0:00:07.1]} 29. Ba3 {[%clk
0:00:32.3]} 29... Qg6 {[%clk 0:00:06.4]} 30. Nh4 {[%clk 0:00:27.5]} 30... Qxe4
{[%clk 0:00:05.5]} 31. f3 {[%clk 0:00:25.9]} 31... Qe3+ {[%clk 0:00:04.6]} 32.
Kh2 {[%clk 0:00:25.2]} 32... Qe1 {[%clk 0:00:04.1]} 33. Nf5 {[%clk 0:00:18]}
33... Nf2 {[%clk 0:00:04.1]} 34. Nxg7 {[%clk 0:00:04.4]} 34... Qh1+ {[%clk
0:00:03.4]} 35. Kg3 {[%clk 0:00:03.7]} 35... Qxg2+ {[%clk 0:00:04.1]} 0-1

[Event "Early-Titled-Tuesday-Blitz-October-17-2023"]
[Site "Chess.com"]
[Date "2023.10.17"]
[Round "8"]
[White "sorch29"]
[Black "Tagliata"]
[Result "1-0"]
[WhiteElo "2410"]
[BlackElo "2134"]
[TimeControl "180+1"]
[EndTime "9:32:23 PDT"]
[Termination "sorch29 won on time"]

1. c4 {[%clk 0:03:00.9]} 1... c6 {[%clk 0:02:57.7]} 2. Nf3 {[%clk 0:02:58.7]}
2... d5 {[%clk 0:02:57]} 3. e3 {[%clk 0:02:52.5]} 3... Nf6 {[%clk 0:02:55.4]} 4.
Nc3 {[%clk 0:02:51.9]} 4... e6 {[%clk 0:02:52.7]} 5. b3 {[%clk 0:02:50.6]} 5...
Be7 {[%clk 0:02:51.8]} 6. Bb2 {[%clk 0:02:50.9]} 6... O-O {[%clk 0:02:52.5]} 7.
Qc2 {[%clk 0:02:47.6]} 7... Nbd7 {[%clk 0:02:51.6]} 8. g4 {[%clk 0:02:44]} 8...
Nxg4 {[%clk 0:02:37.6]} 9. Rg1 {[%clk 0:02:43.9]} 9... f5 {[%clk 0:02:36.3]} 10.
h3 {[%clk 0:02:14.8]} 10... Ngf6 {[%clk 0:02:32.8]} 11. O-O-O {[%clk 0:02:06]}
11... h6 {[%clk 0:02:20.1]} 12. Ne2 {[%clk 0:01:55.9]} 12... Rf7 {[%clk
0:02:17.2]} 13. Nf4 {[%clk 0:01:55.5]} 13... Nb6 {[%clk 0:01:34]} 14. Ne5 {[%clk
0:01:52.4]} 14... Rf8 {[%clk 0:01:34.5]} 15. Nfg6 {[%clk 0:01:37.2]} 15... Re8
{[%clk 0:01:32.7]} 16. Nxe7+ {[%clk 0:01:27.9]} 16... Qxe7 {[%clk 0:01:33.6]}
17. Be2 {[%clk 0:01:20.5]} 17... Nbd7 {[%clk 0:01:26.3]} 18. Rg2 {[%clk
0:01:12.7]} 18... Nf8 {[%clk 0:01:20.7]} 19. Rdg1 {[%clk 0:01:11.5]} 19... g5
{[%clk 0:01:10.3]} 20. f4 {[%clk 0:00:59.1]} 20... N6h7 {[%clk 0:01:02.6]} 21.
Nf3 {[%clk 0:00:46.8]} 21... Ng6 {[%clk 0:00:38.7]} 22. fxg5 {[%clk 0:00:46.8]}
22... h5 {[%clk 0:00:38.1]} 23. Ne5 {[%clk 0:00:35.9]} 23... Nh4 {[%clk
0:00:27.2]} 24. g6 {[%clk 0:00:12.1]} 24... Nxg2 {[%clk 0:00:21.5]} 25. gxh7+
{[%clk 0:00:11]} 25... Kxh7 {[%clk 0:00:22.4]} 26. Rxg2 {[%clk 0:00:10.3]} 26...
Rg8 {[%clk 0:00:22.9]} 27. Rxg8 {[%clk 0:00:08.8]} 27... Kxg8 {[%clk 0:00:23.8]}
28. Bxh5 {[%clk 0:00:05.5]} 28... Qg5 {[%clk 0:00:20.6]} 29. Bf7+ {[%clk
0:00:03.9]} 29... Kf8 {[%clk 0:00:19.9]} 30. Qc3 {[%clk 0:00:03.7]} 30... Qg1+
{[%clk 0:00:12.8]} 31. Kc2 {[%clk 0:00:04.1]} 31... b6 {[%clk 0:00:10.1]} 32.
Bh5 {[%clk 0:00:02.9]} 32... Bb7 {[%clk 0:00:08.4]} 33. Nd7+ {[%clk 0:00:03.3]}
33... Ke7 {[%clk 0:00:08.7]} 34. Qf6+ {[%clk 0:00:03.9]} 34... Kxd7 {[%clk
0:00:08.2]} 35. Qf7+ {[%clk 0:00:03.8]} 35... Kd6 {[%clk 0:00:03.5]} 36. Qxb7
{[%clk 0:00:04]} 36... Qg8 {[%clk 0:00:01.8]} 37. Ba3+ {[%clk 0:00:04.6]} 1-0

[Event "Early-Titled-Tuesday-Blitz-October-17-2023"]
[Site "Chess.com"]
[Date "2023.10.17"]
[Round "8"]
[White "UK_23"]
[Black "GlavkonVVS"]
[Result "0-1"]
[WhiteElo "2409"]
[BlackElo "2569"]
[TimeControl "180+1"]
[EndTime "9:32:25 PDT"]
[Termination "GlavkonVVS won on time"]

1. e4 {[%clk 0:03:00.9]} 1... c5 {[%clk 0:03:00.2]} 2. Nf3 {[%clk 0:03:01.2]}
2... d6 {[%clk 0:02:59.2]} 3. Bb5+ {[%clk 0:03:01.5]} 3... Nd7 {[%clk 0:02:58]}
4. c4 {[%clk 0:03:01.8]} 4... g6 {[%clk 0:02:56.4]} 5. d4 {[%clk 0:02:59.7]}
5... cxd4 {[%clk 0:02:56.8]} 6. Nxd4 {[%clk 0:03:00.6]} 6... Bg7 {[%clk
0:02:56.3]} 7. Nc3 {[%clk 0:02:59.9]} 7... Nf6 {[%clk 0:02:56.4]} 8. O-O {[%clk
0:02:59.7]} 8... O-O {[%clk 0:02:56.6]} 9. Bxd7 {[%clk 0:02:59.7]} 9... Bxd7
{[%clk 0:02:56.7]} 10. b3 {[%clk 0:02:55.9]} 10... Rc8 {[%clk 0:02:54.7]} 11.
Bb2 {[%clk 0:02:55.8]} 11... a6 {[%clk 0:02:53.7]} 12. Qd3 {[%clk 0:02:51.7]}
12... Qa5 {[%clk 0:02:44.2]} 13. Rad1 {[%clk 0:02:35.8]} 13... b5 {[%clk
0:02:34.5]} 14. cxb5 {[%clk 0:02:32]} 14... axb5 {[%clk 0:02:34.8]} 15. Ndxb5
{[%clk 0:02:22.9]} 15... Bxb5 {[%clk 0:02:32.4]} 16. Qxb5 {[%clk 0:02:17.1]}
16... Qxb5 {[%clk 0:02:31]} 17. Nxb5 {[%clk 0:02:18]} 17... Nxe4 {[%clk
0:02:31.3]} 18. Bxg7 {[%clk 0:02:16]} 18... Kxg7 {[%clk 0:02:31.8]} 19. Rc1
{[%clk 0:02:07.9]} 19... Rb8 {[%clk 0:02:16.9]} 20. Rfe1 {[%clk 0:01:50.1]}
20... Nc5 {[%clk 0:02:07.5]} 21. Nd4 {[%clk 0:01:35.6]} 21... Nd3 {[%clk
0:02:05.6]} 22. Rcd1 {[%clk 0:01:28.1]} 22... Nxe1 {[%clk 0:02:00.3]} 23. Rxe1
{[%clk 0:01:29]} 23... e6 {[%clk 0:02:00.1]} 24. h4 {[%clk 0:01:27.8]} 24...
Rfc8 {[%clk 0:01:59.6]} 25. Re2 {[%clk 0:01:27.4]} 25... Rb4 {[%clk 0:01:59.5]}
26. Rd2 {[%clk 0:01:23]} 26... d5 {[%clk 0:01:54.3]} 27. f4 {[%clk 0:01:20.6]}
27... Kf6 {[%clk 0:01:43.8]} 28. Kf2 {[%clk 0:01:21.1]} 28... Rc3 {[%clk
0:01:42.9]} 29. g3 {[%clk 0:01:13.7]} 29... h6 {[%clk 0:01:39.4]} 30. Nf3 {[%clk
0:01:09.1]} 30... Ke7 {[%clk 0:01:35.3]} 31. Ne5 {[%clk 0:01:08.8]} 31... Re4
{[%clk 0:01:21.7]} 32. Nd3 {[%clk 0:00:42.4]} 32... Kd6 {[%clk 0:01:18.4]} 33.
Kf3 {[%clk 0:00:32.6]} 33... f6 {[%clk 0:01:15.6]} 34. Kf2 {[%clk 0:00:28.6]}
34... g5 {[%clk 0:01:12.3]} 35. fxg5 {[%clk 0:00:27.3]} 35... hxg5 {[%clk
0:01:10.6]} 36. h5 {[%clk 0:00:27.5]} 36... e5 {[%clk 0:01:03.3]} 37. Nb2 {[%clk
0:00:16.9]} 37... Ke6 {[%clk 0:00:57.5]} 38. Nd1 {[%clk 0:00:15.5]} 38... Rc8
{[%clk 0:00:54]} 39. Ne3 {[%clk 0:00:15.9]} 39... d4 {[%clk 0:00:49.4]} 40. Nc4
{[%clk 0:00:13.6]} 40... f5 {[%clk 0:00:49]} 41. Kf3 {[%clk 0:00:13.4]} 41...
g4+ {[%clk 0:00:48.6]} 42. Kg2 {[%clk 0:00:13.3]} 42... f4 {[%clk 0:00:48.9]}
43. gxf4 {[%clk 0:00:13.5]} 43... exf4 {[%clk 0:00:49.2]} 44. Rd1 {[%clk
0:00:12.8]} 44... Rh8 {[%clk 0:00:43.1]} 45. Rh1 {[%clk 0:00:12.3]} 45... Re2+
{[%clk 0:00:43]} 46. Kf1 {[%clk 0:00:12.8]} 46... f3 {[%clk 0:00:42.9]} 47. h6
{[%clk 0:00:13.1]} 47... Kf5 {[%clk 0:00:40.5]} 48. Nd6+ {[%clk 0:00:12.4]}
48... Kf4 {[%clk 0:00:40.5]} 49. h7 {[%clk 0:00:12.5]} 49... Re7 {[%clk
0:00:38.8]} 50. Rh5 {[%clk 0:00:02.7]} 50... Rhxh7 {[%clk 0:00:34.4]} 51. Rf5+
{[%clk 0:00:01]} 51... Kg3 {[%clk 0:00:34.8]} 0-1

[Event "Early-Titled-Tuesday-Blitz-October-17-2023"]
[Site "Chess.com"]
[Date "2023.10.17"]
[Round "8"]
[White "beccrajoy"]
[Black "Iskusnyh"]
[Result "0-1"]
[WhiteElo "2003"]
[BlackElo "2570"]
[TimeControl "180+1"]
[EndTime "9:32:28 PDT"]
[Termination "Iskusnyh won by resignation"]

1. e4 {[%clk 0:03:00.9]} 1... e6 {[%clk 0:02:59.5]} 2. d4 {[%clk 0:03:00.3]}
2... d5 {[%clk 0:02:59.8]} 3. e5 {[%clk 0:03:00.8]} 3... c5 {[%clk 0:02:58.4]}
4. c3 {[%clk 0:03:01.5]} 4... Nc6 {[%clk 0:02:55.1]} 5. Nf3 {[%clk 0:02:59]}
5... Nh6 {[%clk 0:02:50.9]} 6. Bd3 {[%clk 0:02:54.7]} 6... cxd4 {[%clk
0:02:48.6]} 7. O-O {[%clk 0:02:53.9]} 7... Nf5 {[%clk 0:02:43.8]} 8. Re1 {[%clk
0:02:35.4]} 8... Be7 {[%clk 0:02:37]} 9. Bxf5 {[%clk 0:02:11.9]} 9... exf5
{[%clk 0:02:37.1]} 10. Nxd4 {[%clk 0:02:08.8]} 10... O-O {[%clk 0:02:30.2]} 11.
e6 {[%clk 0:01:56.8]} 11... fxe6 {[%clk 0:02:02.6]} 12. Nxe6 {[%clk 0:01:54.9]}
12... Bxe6 {[%clk 0:02:03.5]} 13. Rxe6 {[%clk 0:01:55.3]} 13... d4 {[%clk
0:01:57.8]} 14. Bf4 {[%clk 0:01:47.8]} 14... Qd5 {[%clk 0:01:45]} 15. Qb3 {[%clk
0:01:31.6]} 15... Qxb3 {[%clk 0:01:26.3]} 16. axb3 {[%clk 0:01:32.5]} 16... Rad8
{[%clk 0:01:23.1]} 17. Nd2 {[%clk 0:01:30.3]} 17... g5 {[%clk 0:01:18.4]} 18.
Be5 {[%clk 0:01:08]} 18... Kf7 {[%clk 0:01:06.4]} 19. Rxc6 {[%clk 0:00:59.4]}
19... bxc6 {[%clk 0:01:05]} 20. cxd4 {[%clk 0:00:58.8]} 20... Rd7 {[%clk
0:00:53.2]} 21. Nc4 {[%clk 0:00:48.9]} 21... Rfd8 {[%clk 0:00:39.3]} 22. h3
{[%clk 0:00:43.4]} 22... g4 {[%clk 0:00:33.6]} 23. hxg4 {[%clk 0:00:39.5]} 23...
fxg4 {[%clk 0:00:34.5]} 24. Ra6 {[%clk 0:00:38.2]} 24... c5 {[%clk 0:00:30.4]}
25. Bf4 {[%clk 0:00:19.5]} 25... Rxd4 {[%clk 0:00:27.7]} 26. Ne5+ {[%clk
0:00:15.8]} 26... Ke8 {[%clk 0:00:22.7]} 27. Bg3 {[%clk 0:00:14.5]} 27... Rd1+
{[%clk 0:00:16.9]} 28. Kh2 {[%clk 0:00:14.2]} 28... Rb1 {[%clk 0:00:16.6]} 29.
Rh6 {[%clk 0:00:13.8]} 29... Rdd1 {[%clk 0:00:16.1]} 30. Bf4 {[%clk 0:00:12.3]}
30... Rh1+ {[%clk 0:00:15.8]} 31. Kg3 {[%clk 0:00:12.9]} 31... Rxh6 {[%clk
0:00:15.4]} 32. Bxh6 {[%clk 0:00:13.8]} 32... Rxb2 {[%clk 0:00:15.3]} 33. Bg7
{[%clk 0:00:13.5]} 33... Rxb3+ {[%clk 0:00:15.1]} 34. f3 {[%clk 0:00:12.9]}
34... gxf3 {[%clk 0:00:14.1]} 35. gxf3 {[%clk 0:00:13.8]} 35... Bd6 {[%clk
0:00:14.2]} 36. Kg4 {[%clk 0:00:12.1]} 36... Bxe5 {[%clk 0:00:14.3]} 37. Bxe5
{[%clk 0:00:13]} 37... a5 {[%clk 0:00:14.5]} 38. f4 {[%clk 0:00:13]} 38... a4
{[%clk 0:00:14.7]} 39. Kf5 {[%clk 0:00:12.6]} 39... a3 {[%clk 0:00:14.7]} 40.
Ke4 {[%clk 0:00:12.8]} 40... a2 {[%clk 0:00:14.6]} 41. Kd5 {[%clk 0:00:13]}
41... Rb1 {[%clk 0:00:14.2]} 42. Kxc5 {[%clk 0:00:13]} 42... a1=Q {[%clk
0:00:13.6]} 43. Bxa1 {[%clk 0:00:13.5]} 43... Rxa1 {[%clk 0:00:13.9]} 44. Kd5
{[%clk 0:00:14.4]} 44... Kf7 {[%clk 0:00:14.1]} 45. Ke5 {[%clk 0:00:15.3]} 45...
Ra5+ {[%clk 0:00:13.4]} 46. Ke4 {[%clk 0:00:15.3]} 46... Kf6 {[%clk 0:00:13.8]}
47. Kf3 {[%clk 0:00:15.5]} 47... Kf5 {[%clk 0:00:13.3]} 0-1